[Event "Vegagatan U1800-B"]
[Site "Goteborgs Schackcentrum, Vegatan 20, Gothenburg, Sweden"]
[Date "2025.05.03"]
[Round "4.3"]
[White "Hemmerling, Martin"]
[Black "Hernebring, Marten"]
[Result "1/2-1/2"]
[TimeControl "30 minutes + 30 seconds per move from move one"]
[WhiteFideId "1795724"]
[BlackFideId "1776894"]
[WhiteElo "1788"]
[BlackElo "1679"]

1. d4 {[%clk 00:30:57]} {[%emt 00:00:03]} d5 {[%clk 00:30:55]} {[%emt
00:00:06]} 2. Nc3 {[%clk 00:31:21]} {[%emt 00:00:06]} e6 {[%clk 00:31:18]}
{[%emt 00:00:07]} 3. Bf4 {[%clk 00:31:25]} {[%emt 00:00:26]} Bb4 {[%clk
00:31:40]} {[%emt 00:00:07]} 4. e3 {[%clk 00:31:33]} {[%emt 00:00:22]} Nf6
{[%clk 00:31:50]} {[%emt 00:00:21]} 5. Nge2 {[%clk 00:31:25]} {[%emt 00:00:38]}
O-O {[%clk 00:31:59]} {[%emt 00:00:20]} 6. a3 {[%clk 00:31:50]} {[%emt
00:00:06]} Ba5 {[%clk 00:31:13]} {[%emt 00:01:16]} 7. b4 {[%clk 00:32:02]}
{[%emt 00:00:17]} Bb6 {[%clk 00:31:37]} {[%emt 00:00:07]} 8. Ng3 {[%clk
00:31:27]} {[%emt 00:01:04]} a5 {[%clk 00:31:48]} {[%emt 00:00:20]} 9. Bd3
{[%clk 00:28:44]} {[%emt 00:03:12]} axb4 {[%clk 00:30:31]} {[%emt 00:01:48]} 10.
axb4 {[%clk 00:29:07]} {[%emt 00:00:07]} Rxa1 {[%clk 00:30:55]} {[%emt
00:00:06]} 11. Qxa1 {[%clk 00:29:30]} {[%emt 00:00:06]} Re8 {[%clk 00:29:31]}
{[%emt 00:01:54]} 12. O-O {[%clk 00:29:32]} {[%emt 00:00:29]} c6 {[%clk
00:29:30]} {[%emt 00:00:30]} 13. Bxb8 {[%clk 00:28:32]} {[%emt 00:01:30]} Nd7
{[%clk 00:28:17]} {[%emt 00:01:44]} 14. Bd6 {[%clk 00:25:45]} {[%emt 00:03:17]}
e5 {[%clk 00:28:29]} {[%emt 00:00:17]} 15. dxe5 {[%clk 00:26:03]} {[%emt
00:00:13]} Nxe5 {[%clk 00:28:53]} {[%emt 00:00:05]} 16. Bxe5 {[%clk 00:26:14]}
{[%emt 00:00:18]} Rxe5 {[%clk 00:29:14]} {[%emt 00:00:10]} 17. Na4 {[%clk
00:25:57]} {[%emt 00:00:48]} Bc7 {[%clk 00:29:06]} {[%emt 00:00:38]} 18. Nc5
{[%clk 00:20:02]} {[%emt 00:06:24]} h5 {[%clk 00:28:45]} {[%emt 00:00:51]} 19.
Qd4 {[%clk 00:13:26]} {[%emt 00:07:06]} h4 {[%clk 00:27:58]} {[%emt 00:01:17]}
20. f4 {[%clk 00:13:17]} {[%emt 00:00:39]} hxg3 {[%clk 00:26:27]} {[%emt
00:02:01]} 21. fxe5 {[%clk 00:13:29]} {[%emt 00:00:18]} Qg5 {[%clk 00:26:43]}
{[%emt 00:00:14]} 22. Qf4 {[%clk 00:12:29]} {[%emt 00:01:29]} gxh2+ {[%clk
00:26:53]} {[%emt 00:00:21]} 23. Kh1 {[%clk 00:12:01]} {[%emt 00:00:59]} Qh5
{[%clk 00:25:20]} {[%emt 00:02:02]} 24. Qf3 {[%clk 00:10:42]} {[%emt 00:01:49]}
Bg4 {[%clk 00:24:52]} {[%emt 00:00:58]} 25. Qf2 {[%clk 00:08:47]} {[%emt
00:02:25]} b6 {[%clk 00:20:59]} {[%emt 00:04:23]} 26. Nb3 {[%clk 00:07:25]}
{[%emt 00:01:52]} Bxe5 {[%clk 00:21:24]} {[%emt 00:00:06]} 27. Bf5 {[%clk
00:07:34]} {[%emt 00:00:20]} f6 {[%clk 00:18:31]} {[%emt 00:03:23]} 28. Bxg4
{[%clk 00:07:50]} {[%emt 00:00:14]} Qxg4 {[%clk 00:18:55]} {[%emt 00:00:06]} 29.
Qf3 {[%clk 00:07:07]} {[%emt 00:01:13]} Qxb4 {[%clk 00:17:44]} {[%emt
00:01:41]} 30. Rd1 {[%clk 00:04:04]} {[%emt 00:03:33]} g5 {[%clk 00:14:55]}
{[%emt 00:03:19]} 31. Nd4 {[%clk 00:03:32]} {[%emt 00:01:01]} Qc4 {[%clk
00:11:36]} {[%emt 00:03:50]} 32. Nxc6 {[%clk 00:02:45]} {[%emt 00:01:17]} Qxc6
{[%clk 00:11:14]} {[%emt 00:00:52]} 33. Qxd5+ {[%clk 00:03:09]} {[%emt
00:00:06]} Qxd5 {[%clk 00:11:34]} {[%emt 00:00:11]} 34. Rxd5 {[%clk 00:03:36]}
{[%emt 00:00:03]} Kf7 {[%clk 00:11:20]} {[%emt 00:00:43]} 35. Rb5 {[%clk
00:03:55]} {[%emt 00:00:11]} Bc7 {[%clk 00:11:25]} {[%emt 00:00:25]} 36. Rb3
{[%clk 00:04:17]} {[%emt 00:00:09]} Ke6 {[%clk 00:11:17]} {[%emt 00:00:37]} 37.
Rc3 {[%clk 00:04:22]} {[%emt 00:00:25]} Kd7 {[%clk 00:11:15]} {[%emt 00:00:32]}
38. e4 {[%clk 00:04:38]} {[%emt 00:00:15]} Be5 {[%clk 00:10:42]} {[%emt
00:01:03]} 39. Rd3+ {[%clk 00:04:59]} {[%emt 00:00:09]} Ke6 {[%clk 00:07:44]}
{[%emt 00:03:26]} 40. g3 {[%clk 00:05:24]} {[%emt 00:00:06]} Bc7 {[%clk
00:08:04]} {[%emt 00:00:10]} 41. Kxh2 {[%clk 00:05:35]} {[%emt 00:00:19]} Ke5
{[%clk 00:08:29]} {[%emt 00:00:06]} 42. Rd7 {[%clk 00:05:08]} {[%emt 00:00:57]}
Bd6 {[%clk 00:08:38]} {[%emt 00:00:21]} 43. Rb7 {[%clk 00:04:57]} {[%emt
00:00:40]} Bc5 {[%clk 00:08:58]} {[%emt 00:00:11]} 44. Rf7 {[%clk 00:04:54]}
{[%emt 00:00:32]} Bd4 {[%clk 00:09:15]} {[%emt 00:00:13]} 45. Re7+ {[%clk
00:04:59]} {[%emt 00:00:25]} Kd6 {[%clk 00:09:24]} {[%emt 00:00:21]} 46. Re8
{[%clk 00:05:22]} {[%emt 00:00:08]} Kd7 {[%clk 00:08:18]} {[%emt 00:01:36]} 47.
Ra8 {[%clk 00:05:38]} {[%emt 00:00:13]} Kd6 {[%clk 00:08:41]} {[%emt 00:00:07]}
48. Kg2 {[%clk 00:05:57]} {[%emt 00:00:11]} Bc5 {[%clk 00:08:44]} {[%emt
00:00:27]} 49. g4 {[%clk 00:06:10]} {[%emt 00:00:17]} Ke5 {[%clk 00:08:41]}
{[%emt 00:00:33]} 50. Kf3 {[%clk 00:06:33]} {[%emt 00:00:07]} Kd4 {[%clk
00:09:03]} {[%emt 00:00:09]} 51. Ra2 {[%clk 00:03:50]} {[%emt 00:03:13]} Kc3
{[%clk 00:09:13]} {[%emt 00:00:20]} 52. Ke2 {[%clk 00:04:11]} {[%emt 00:00:09]}
Kd4 {[%clk 00:09:20]} {[%emt 00:00:23]} 53. Ra4+ {[%clk 00:02:51]} {[%emt
00:01:50]} Kc3 {[%clk 00:09:37]} {[%emt 00:00:13]} 54. Kd1 {[%clk 00:03:12]}
{[%emt 00:00:09]} Bd4 {[%clk 00:08:48]} {[%emt 00:01:18]} 55. Ra3+ {[%clk
00:03:08]} {[%emt 00:00:35]} Kc4 {[%clk 00:08:17]} {[%emt 00:01:00]} 56. Kd2
{[%clk 00:03:09]} {[%emt 00:00:29]} Bc5 {[%clk 00:08:22]} {[%emt 00:00:25]} 57.
Rb3 {[%clk 00:03:32]} {[%emt 00:00:07]} Kd4 {[%clk 00:08:35]} {[%emt 00:00:16]}
58. Re3 {[%clk 00:03:03]} {[%emt 00:01:00]} Ke5 {[%clk 00:08:50]} {[%emt
00:00:15]} 59. Re2 {[%clk 00:03:14]} {[%emt 00:00:19]} Kf4 {[%clk 00:08:52]}
{[%emt 00:00:28]} 60. Kd3 {[%clk 00:02:01]} {[%emt 00:01:44]} Kxg4 {[%clk
00:09:12]} {[%emt 00:00:10]} 61. e5 {[%clk 00:02:13]} {[%emt 00:00:18]} fxe5
{[%clk 00:09:09]} {[%emt 00:00:33]} 62. Rxe5 {[%clk 00:02:34]} {[%emt
00:00:09]} Kf4 {[%clk 00:09:15]} {[%emt 00:00:23]} 63. Re6 {[%clk 00:02:37]}
{[%emt 00:00:27]} g4 {[%clk 00:08:54]} {[%emt 00:00:51]} 64. Ke2 {[%clk
00:02:46]} {[%emt 00:00:20]} g3 {[%clk 00:08:40]} {[%emt 00:00:45]} 65. Kf1
{[%clk 00:03:04]} {[%emt 00:00:13]} Kf3 {[%clk 00:05:20]} {[%emt 00:03:50]} 66.
Rf6+ {[%clk 00:03:22]} {[%emt 00:00:12]} Ke3 {[%clk 00:05:41]} {[%emt
00:00:09]} 67. Kg2 {[%clk 00:02:39]} {[%emt 00:01:13]} Kd2 {[%clk 00:05:04]}
{[%emt 00:01:07]} 68. c4 {[%clk 00:02:57]} {[%emt 00:00:12]} Bf2 {[%clk
00:03:04]} {[%emt 00:02:29]} 69. Rg6 {[%clk 00:01:59]} {[%emt 00:01:28]} Kd3
{[%clk 00:03:09]} {[%emt 00:00:26]} 70. Rg4 {[%clk 00:02:21]} {[%emt 00:00:08]}
Bd4 {[%clk 00:03:00]} {[%emt 00:00:39]} 71. Kxg3 {[%clk 00:01:11]} {[%emt
00:01:39]} Kxc4 {[%clk 00:03:20]} {[%emt 00:00:10]} 72. Kf3 {[%clk 00:01:32]}
{[%emt 00:00:09]} b5 {[%clk 00:03:37]} {[%emt 00:00:14]} 73. Ke2 {[%clk
00:01:51]} {[%emt 00:00:10]} b4 {[%clk 00:03:58]} {[%emt 00:00:10]} 74. Kd1
{[%clk 00:02:06]} {[%emt 00:00:14]} Kc3 {[%clk 00:02:47]} {[%emt 00:01:41]} 75.
Kc1 {[%clk 00:01:27]} {[%emt 00:01:09]} b3 {[%clk 00:02:26]} {[%emt 00:00:51]}
76. Rg3+ {[%clk 00:01:46]} {[%emt 00:00:11]} Kc4 {[%clk 00:02:13]} {[%emt
00:00:42]} 77. Kb1 {[%clk 00:01:58]} {[%emt 00:00:20]} Bc3 {[%clk 00:01:11]}
{[%emt 00:01:32]} 78. Rg8 {[%clk 00:01:49]} 1/2-1/2

[Event "Vegagatan U1800-B"]
[Site "Goteborgs Schackcentrum, Vegatan 20, Gothenburg, Sweden"]
[Date "2025.05.03"]
[Round "4.4"]
[White "Vairav, Vihaan"]
[Black "Olivius, Sten"]
[Result "0-1"]
[TimeControl "30 minutes + 30 seconds per move from move one"]
[WhiteFideId "1783971"]
[BlackFideId "1788728"]
[WhiteElo "1666"]
[BlackElo "1678"]

1. d4 {[%clk 00:30:59]} f5 {[%clk 00:30:17]} {[%emt 00:00:43]} 2. c4 {[%clk
00:31:20]} {[%emt 00:00:09]} Nf6 {[%clk 00:30:39]} {[%emt 00:00:08]} 3. Nc3
{[%clk 00:31:43]} {[%emt 00:00:07]} e6 {[%clk 00:31:00]} {[%emt 00:00:09]} 4.
Bf4 {[%clk 00:31:20]} {[%emt 00:00:53]} d6 {[%clk 00:31:19]} {[%emt 00:00:12]}
5. e3 {[%clk 00:31:38]} {[%emt 00:00:11]} Nc6 {[%clk 00:31:03]} {[%emt
00:00:46]} 6. Nf3 {[%clk 00:31:59]} {[%emt 00:00:09]} Be7 {[%clk 00:31:01]}
{[%emt 00:00:32]} 7. Be2 {[%clk 00:32:18]} {[%emt 00:00:11]} O-O {[%clk
00:31:22]} {[%emt 00:00:10]} 8. O-O {[%clk 00:30:48]} {[%emt 00:01:59]} Nh5
{[%clk 00:31:23]} {[%emt 00:00:28]} 9. Qc2 {[%clk 00:29:36]} {[%emt 00:01:42]}
Bf6 {[%clk 00:31:30]} {[%emt 00:00:22]} 10. Rad1 {[%clk 00:28:53]} {[%emt
00:01:12]} Qe7 {[%clk 00:31:02]} {[%emt 00:01:01]} 11. Bg3 {[%clk 00:26:47]}
{[%emt 00:02:35]} Nxg3 {[%clk 00:30:06]} {[%emt 00:01:27]} 12. hxg3 {[%clk
00:26:34]} {[%emt 00:00:43]} Qf7 {[%clk 00:30:10]} {[%emt 00:00:26]} 13. e4
{[%clk 00:26:09]} {[%emt 00:00:56]} Ne7 {[%clk 00:29:44]} {[%emt 00:00:55]} 14.
d5 {[%clk 00:23:47]} {[%emt 00:02:52]} e5 {[%clk 00:28:10]} {[%emt 00:02:04]}
15. Nb5 {[%clk 00:22:38]} {[%emt 00:01:38]} fxe4 {[%clk 00:28:20]} {[%emt
00:00:21]} 16. Qxe4 {[%clk 00:22:58]} {[%emt 00:00:09]} Nf5 {[%clk 00:28:19]}
{[%emt 00:00:31]} 17. Qc2 {[%clk 00:21:11]} {[%emt 00:02:18]} a6 {[%clk
00:28:14]} {[%emt 00:00:35]} 18. Nc3 {[%clk 00:20:22]} {[%emt 00:01:18]} Bd7
{[%clk 00:27:18]} {[%emt 00:01:27]} 19. Bd3 {[%clk 00:19:50]} {[%emt 00:01:02]}
g6 {[%clk 00:27:31]} {[%emt 00:00:17]} 20. Qb3 {[%clk 00:19:28]} {[%emt
00:00:51]} Rab8 {[%clk 00:27:11]} {[%emt 00:00:51]} 21. Ne4 {[%clk 00:17:37]}
{[%emt 00:02:21]} h6 {[%clk 00:27:03]} {[%emt 00:00:38]} 22. c5 {[%clk
00:15:53]} {[%emt 00:02:14]} Qe8 {[%clk 00:26:49]} {[%emt 00:00:44]} 23. g4
{[%clk 00:15:12]} {[%emt 00:01:11]} Ba4 {[%clk 00:26:12]} {[%emt 00:01:07]} 24.
Qc3 {[%clk 00:15:13]} {[%emt 00:00:27]} Bxd1 {[%clk 00:26:33]} {[%emt
00:00:12]} 25. Rxd1 {[%clk 00:15:37]} {[%emt 00:00:05]} Nd4 {[%clk 00:26:28]}
{[%emt 00:00:35]} 26. cxd6 {[%clk 00:14:32]} {[%emt 00:01:36]} cxd6 {[%clk
00:26:17]} {[%emt 00:00:40]} 27. Qc1 {[%clk 00:12:58]} {[%emt 00:02:01]} Nxf3+
{[%clk 00:26:09]} {[%emt 00:00:41]} 28. gxf3 {[%clk 00:13:16]} {[%emt
00:00:12]} Bg7 {[%clk 00:26:28]} {[%emt 00:00:11]} 29. Nxd6 {[%clk 00:12:51]}
{[%emt 00:00:55]} Qd7 {[%clk 00:26:37]} {[%emt 00:00:21]} 30. Nc4 {[%clk
00:12:56]} {[%emt 00:00:24]} Rxf3 {[%clk 00:26:32]} {[%emt 00:00:36]} 31. Ne3
{[%clk 00:12:51]} {[%emt 00:00:33]} Rbf8 {[%clk 00:26:19]} {[%emt 00:00:45]} 32.
Rf1 {[%clk 00:11:59]} {[%emt 00:01:18]} Qd6 {[%clk 00:25:57]} {[%emt 00:00:57]}
33. Qc4 {[%clk 00:11:44]} {[%emt 00:00:43]} R3f4 {[%clk 00:25:04]} {[%emt
00:01:24]} 34. Qc2 {[%clk 00:11:11]} {[%emt 00:01:02]} Kh7 {[%clk 00:24:01]}
{[%emt 00:01:34]} 35. Qe2 {[%clk 00:10:39]} {[%emt 00:01:01]} e4 {[%clk
00:23:55]} {[%emt 00:00:37]} 36. Bc4 {[%clk 00:10:47]} {[%emt 00:00:22]} Bd4
{[%clk 00:23:44]} {[%emt 00:00:40]} 37. Ng2 {[%clk 00:11:04]} {[%emt 00:00:11]}
Rxf2 {[%clk 00:23:53]} {[%emt 00:00:22]} 38. Rxf2 {[%clk 00:11:27]} {[%emt
00:00:08]} Rxf2 {[%clk 00:24:13]} {[%emt 00:00:10]} 39. Qxf2 {[%clk 00:11:17]}
{[%emt 00:00:41]} Bxf2+ {[%clk 00:24:38]} {[%emt 00:00:05]} 40. Kxf2 {[%clk
00:11:39]} {[%emt 00:00:07]} Qb6+ {[%clk 00:24:54]} {[%emt 00:00:15]} 41. Kg3
{[%clk 00:11:45]} {[%emt 00:00:22]} Qc7+ {[%clk 00:25:10]} {[%emt 00:00:16]}
0-1